lending/lending_fUSD_20260119
["ID","MTS","AMOUNT","RATE_DAILY","PERIOD"]
[402733956,1768862495749,1306.765,0.00015281,2]
[402733957,1768862600031,6851.79839178,0.00015366,2]
[402733964,1768863031390,-2164.387,0.00015493,2]
[402733965,1768863031399,-1200.0,0.00015591,2]
[402733966,1768863031410,-234.37192749,0.00015591,2]
[402733967,1768863031420,-4078.57811773,0.00015592,2]
[402733968,1768863031431,-779.62284677,0.00015673,2]
[402733969,1768863031440,-500.0,0.00015692,2]
[402733970,1768863031450,-500.0,0.00015692,2]
[402733971,1768863031460,-4078.57811772,0.00015848,2]
[402733972,1768863031469,-500.0,0.00015973,2]
[402733973,1768863031479,-500.0,0.00015973,2]
[402733974,1768863031490,-500.0,0.00015973,2]
[402733975,1768863031500,-500.0,0.00015973,2]
[402733976,1768863031511,-500.0,0.00015973,2]
[402733977,1768863031522,-500.0,0.00015973,2]
[402733978,1768863031532,-500.0,0.00015973,2]
[402733979,1768863031542,-168.72714551,0.00015973,2]
[402733980,1768863031552,-500.0,0.00015973,2]
[402733981,1768863031563,-500.0,0.00015973,2]
[402733983,1768863031572,-500.0,0.00015973,2]
[402733985,1768863031582,-500.0,0.00015973,2]
[402733987,1768863031591,-500.0,0.00015973,2]
[402733988,1768863031600,-500.0,0.00015973,2]
[402733991,1768863031615,-3201.75553654,0.00016046,2]
[402733993,1768863031625,-2206.47743473,0.00016105,2]
[402733995,1768863031634,-4078.57811772,0.00016105,2]
[402733997,1768863031645,-1500.0,0.00016193,2]
[402733999,1768863031654,-1351.66136173,0.00016275,2]
[402734001,1768863031664,-3567.05571899,0.00016275,2]
[402734003,1768863031673,-6292.70910492,0.00016275,2]
[402734004,1768863031683,-9413.51647874,0.00016275,2]
[402734006,1768863031693,-12736.8153,0.00016275,2]
[402734009,1768863031702,-2206.47743473,0.00016361,2]
[402734010,1768863031712,-4078.57811772,0.00016361,2]
[402734011,1768863031723,-1000.0,0.00016438,2]
[402734012,1768863031734,-1000.0,0.00016438,2]
[402734013,1768863031744,-500.0,0.00016438,2]
[402734014,1768863031756,-381.46219705,0.00016438,2]
[402734015,1768863031766,-300.0,0.00016438,2]
[402734016,1768863031778,-300.0,0.00016438,2]
[402734017,1768863031788,-300.0,0.00016438,2]
[402734018,1768863031798,-1217.0,0.00016438,2]
[402734019,1768863031810,-500.0,0.00016521,2]
[402734020,1768863031820,-160.81,0.0001657,2]
[402734021,1768863031830,-2206.47743473,0.00016618,2]
[402734022,1768863031840,-4078.57811772,0.00016618,2]
[402734023,1768863031851,-1999.0,0.00016712,2]
[402734024,1768863031861,-679.87942857,0.00016714,2]
[402734025,1768863031872,-166.66,0.00016781,2]
[402734026,1768863031882,-2206.47743473,0.00016874,2]
[402734027,1768863031892,-4078.57811772,0.00016874,2]
[402734028,1768863031903,-464.17684244,0.00016911,2]
[402734029,1768863031913,-250.0,0.00017,2]
[402734030,1768863031923,-8964.71985486,0.00017015,2]
[402734031,1768863031933,-200.0,0.00017087,2]
[402734032,1768863031944,-157.65,0.00017123,2]
[402734033,1768863031954,-204.44814013,0.00017129,2]
[402734034,1768863032032,-500.0,0.00017129,2]
[402734035,1768863032044,-366.13195705,0.00017129,2]
[402734036,1768863032056,-617.42954351,0.00017129,2]
[402734037,1768863032066,-979.09308837,0.00017131,2]
[402734038,1768863032079,-1227.38434636,0.00017131,2]
[402734039,1768863032090,-4078.57811772,0.00017131,2]
[402734040,1768863032100,-1680.0,0.00017139,2]
[402734041,1768863032112,-4077.33642377,0.00017149,2]
[402734042,1768863032122,-150.09805643,0.0001715,2]
[402734043,1768863032132,-2207.47,0.00017167,2]
[402734044,1768863032142,-166.66,0.00017335,2]
[402734045,1768863032151,-500.0,0.00017351,2]
[402734046,1768863032164,-2206.47743473,0.00017387,2]
[402734047,1768863032174,-4078.57811772,0.00017387,2]
[402734048,1768863032184,-1189.0,0.00017479,2]
[402734049,1768863032194,-500.0,0.00017562,2]
[402734050,1768863032205,-2206.47743473,0.00017644,2]
[402734051,1768863032215,-4078.57811772,0.00017644,2]
[402734052,1768863032225,-281.85,0.00017679,2]
[402734053,1768863032234,-236.98166534,0.00017784,2]
[402734054,1768863032245,-541.02893786,0.00017784,2]
[402734055,1768863032256,-239.11644539,0.00017784,2]
[402734056,1768863032266,-1787.6,0.00017785,2]
[402734057,1768863032275,-226.0,0.00017798,2]
[402734058,1768863032285,-1000.0,0.00017809,2]
[402734059,1768863032295,-168.0,0.00017817,2]
[402734060,1768863032305,-1189.0,0.0001784,2]
[402734061,1768863032315,-168.0,0.00017877,2]
[402734062,1768863032324,-166.66,0.00017889,2]
[402734063,1768863032333,-551.72402168,0.000179,2]
[402734064,1768863032345,-2206.47743473,0.000179,2]
[402734065,1768863032355,-4078.57811772,0.000179,2]
[402734066,1768863032365,-162.70783595,0.000179,2]
[402734067,1768863032375,-2321.14291684,0.000179,2]
[402734068,1768863032386,-238.87520823,0.00017973,2]
[402734069,1768863032396,-500.0,0.00017973,2]
[402734070,1768863032407,-500.0,0.00017973,2]
[402734071,1768863032417,-500.0,0.00017973,2]
[402734072,1768863032428,-809.80690528,0.00017982,2]
[402734073,1768863032437,-151.0,0.00017997,2]
[402734074,1768863032447,-155.0,0.00017999,2]
[402734075,1768863032458,-666.0,0.00017999,2]
[402734076,1768863032468,-300.0,0.00017999,2]
[402734077,1768863032477,-300.0,0.00017999,2]
[402734078,1768863032488,-150.0,0.00017999,2]
[402734079,1768863032499,-933731.93640927,0.00018,2]
[402734080,1768863032521,-300.0,0.00018,2]
[402734081,1768863032533,-1011.19177213,0.00018,2]
[402734087,1768863037640,-1117.67500685,0.000179,2]
[402734088,1768863037650,-442.0473525,0.00018,2]
[402734089,1768863037662,-6187.37803292,0.00018,2]
[402734096,1768863038816,-1057304.36834322,0.00018,2]
[402734097,1768863038826,-952096.55352795,0.00018,2]
[402734098,1768863038886,-984.20333733,0.00018,2]
[402734099,1768863038898,-993.34152341,0.00018,2]
[402734100,1768863038922,-147.27015425,0.00018,2]
[402734106,1768863040122,-888385.254,0.00015873,2]
[402734107,1768863040131,-1720114.73649969,0.00018,2]
[402734108,1768863040140,-61562.2692152,0.00018,2]
[402734109,1768863040149,-1239.49,0.00018,7]
[402734110,1768863040158,-151.0,0.00018,2]
[402734112,1768863040167,-200.0,0.00018,2]
[402734113,1768863040176,-151.0,0.00018,2]
[402734114,1768863040185,-151.0,0.00018,2]
[402734115,1768863040194,-151.0,0.00018,2]
[402734116,1768863040204,-151.0,0.00018,2]
[402734117,1768863040213,-151.0,0.00018,2]
[402734118,1768863040222,-151.0,0.00018,2]
[402734119,1768863040231,-151.0,0.00018,2]
[402734120,1768863040239,-151.0,0.00018,2]
[402734121,1768863040248,-151.0,0.00018,2]
[402734122,1768863040257,-151.0,0.00018,2]
[402734123,1768863040266,-151.0,0.00018,2]
[402734124,1768863040275,-151.0,0.00018,2]
[402734125,1768863040284,-151.0,0.00018,2]
[402734126,1768863040293,-151.0,0.00018,2]
[402734127,1768863040304,-151.0,0.00018,2]
[402734128,1768863040314,-293.492155,0.00018,2]
[402734129,1768863040323,-293.492155,0.00018,2]
[402734130,1768863040332,-293.492155,0.00018,2]
[402734131,1768863040342,-293.492155,0.00018,2]
[402734132,1768863040351,-170.326445,0.00018,2]
[402734133,1768863040361,-170.326445,0.00018,2]
[402734134,1768863040370,-170.326445,0.00018,2]
[402734135,1768863040379,-170.326445,0.00018,2]
[402734136,1768863040389,-413325.9380995,0.00018,2]
[402734137,1768863040399,-551.67175,0.00018,2]
[402734138,1768863040408,-1322.9513969,0.00018,2]
[402734139,1768863040418,-551.67175,0.00018,2]
[402734140,1768863040428,-551.67175,0.00018,2]
[402734141,1768863040437,-551.67175,0.00018,2]
[402734142,1768863040447,-330.603126,0.00018,2]
[402734143,1768863040456,-330.603126,0.00018,2]
[402734144,1768863040466,-330.603126,0.00018,2]
[402734145,1768863040475,-330.603126,0.00018,2]
[402734146,1768863040484,-1245.619741,0.00018,2]
[402734147,1768863040494,-1245.619741,0.00018,2]
[402734148,1768863040503,-1245.619741,0.00018,2]
[402734149,1768863040512,-1245.619741,0.00018,2]
[402734150,1768863040522,-198.766898,0.00018,2]
[402734151,1768863040531,-198.766898,0.00018,2]
[402734152,1768863040540,-198.766898,0.00018,2]
[402734153,1768863040549,-198.766898,0.00018,2]
[402734154,1768863040558,-151.0,0.00018,2]
[402734155,1768863040567,-151.0,0.00018,2]
[402734156,1768863040577,-441.24,0.00018,2]
[402734157,1768863040586,-161.01920204,0.0001803,2]
[402734158,1768863040595,-1777.58781841,0.000181,2]
[402734159,1768863040604,-1189.0,0.00018117,2]
[402734160,1768863040613,-592.0,0.00018119,2]
[402734161,1768863040622,-592.0,0.00018168,2]
[402734162,1768863040631,-200.0,0.0001818,2]
[402734163,1768863040640,-300.0,0.00018192,4]
[402734164,1768863040649,-909.71,0.00018208,2]
[402734165,1768863040659,-300.0,0.00018219,4]
[402734166,1768863040668,-592.0,0.00018224,2]
[402734167,1768863040677,-160.81,0.00018227,2]
[402734168,1768863040686,-592.0,0.00018236,2]
[402734169,1768863040696,-441.24,0.00018274,2]
[402734170,1768863040705,-592.0,0.00018277,2]
[402734171,1768863040714,-322.6107,0.00018339,2]
[402734172,1768863040724,-4444.0,0.00018339,2]
[402734173,1768863040734,-151.0,0.00018339,2]
[402734174,1768863040747,-578.20924308,0.00018339,2]
[402734175,1768863040756,-187.78006525,0.00018339,2]
[402734176,1768863040765,-151.0,0.00018339,2]
[402734177,1768863040774,-1000.0,0.00018339,2]
[402734178,1768863040785,-1000.0,0.00018339,2]
[402734179,1768863040794,-1000.0,0.00018339,2]
[402734180,1768863040803,-1000.0,0.00018339,2]
[402734181,1768863040812,-1000.0,0.00018339,2]
[402734182,1768863040821,-1000.0,0.00018339,2]
[402734183,1768863040830,-1000.0,0.00018339,2]
[402734184,1768863040839,-1000.0,0.00018339,2]
[402734185,1768863040848,-1000.0,0.00018339,2]
[402734186,1768863040858,-1000.0,0.00018339,2]
[402734187,1768863040867,-1000.0,0.00018339,2]
[402734188,1768863040875,-646.65982734,0.00018339,2]
[402734189,1768863040884,-174.61919141,0.00018339,2]
[402734190,1768863040893,-1000.0,0.00018339,2]
[402734191,1768863040903,-1000.0,0.00018339,2]
[402734192,1768863040912,-918.17410015,0.00018339,2]
[402734193,1768863040922,-620.0,0.00018339,2]
[402734194,1768863040931,-514.84070869,0.00018339,2]
[402734195,1768863040942,-151.0,0.00018339,2]
[402734196,1768863040952,-151.0,0.00018339,2]
[402734197,1768863040961,-151.0,0.00018339,2]
[402734198,1768863040972,-151.0,0.00018339,2]
[402734199,1768863040982,-151.0,0.00018339,2]
[402734200,1768863040992,-151.0,0.00018339,2]
[402734201,1768863041001,-151.0,0.00018339,2]
[402734202,1768863041011,-151.0,0.00018339,2]
[402734203,1768863041021,-151.0,0.00018339,2]
[402734204,1768863041031,-151.0,0.00018339,2]
[402734205,1768863041041,-151.0,0.00018339,2]
[402734206,1768863041052,-151.0,0.00018339,2]
[402734207,1768863041063,-151.0,0.00018339,2]
[402734208,1768863041072,-151.0,0.00018339,2]
[402734209,1768863041081,-300.0,0.00018356,4]
[402734210,1768863041092,-200.0,0.00018362,2]
[402734211,1768863041101,-1600.0,0.00018391,2]
[402734212,1768863041110,-166.66,0.00018443,2]
[402734213,1768863041121,-592.0,0.00018466,2]
[402734214,1768863041131,-592.0,0.00018497,2]
[402734215,1768863041142,-835.0,0.00018501,2]
[402734216,1768863041153,-169.39267462,0.00018521,2]
[402734217,1768863041162,-1000.0,0.00018521,2]
[402734218,1768863041172,-1000.0,0.00018521,2]
[402734219,1768863041181,-1787.6,0.00018541,2]
[402734220,1768863041190,-167.12398652,0.00018545,2]
[402734221,1768863041200,-441.24,0.00018548,2]
[402734222,1768863041210,-592.0,0.0001856,2]
[402734223,1768863041220,-168.0,0.00018683,2]
[402734224,1768863041229,-592.0,0.00018689,2]
[402734225,1768863041239,-168.0,0.00018743,2]
[402734226,1768863041248,-592.0,0.00018753,2]
[402734227,1768863041258,-592.0,0.00018754,2]
[402734228,1768863041268,-1189.0,0.00018762,2]
[402734229,1768863041279,-838.32,0.00018762,2]
[402734230,1768863041289,-1189.0,0.00018765,2]
[402734231,1768863041298,-168.0,0.00018784,2]
[402734232,1768863041308,-500.0,0.00018795,2]
[402734233,1768863041319,-151.28,0.000188,2]
[402734234,1768863041328,-151.28,0.000188,2]
[402734235,1768863041337,-151.28,0.000188,2]
[402734236,1768863041348,-151.28,0.000188,2]
[402734237,1768863041357,-151.28,0.000188,2]
[402734238,1768863041367,-151.28,0.000188,2]
[402734239,1768863041376,-151.28,0.000188,2]
[402734240,1768863041386,-151.28,0.000188,2]
[402734241,1768863041396,-151.28,0.000188,2]
[402734242,1768863041405,-151.28,0.000188,2]
[402734243,1768863041415,-151.28,0.000188,2]
[402734244,1768863041424,-151.28,0.000188,2]
[402734245,1768863041433,-151.28,0.000188,2]
[402734246,1768863041443,-151.28,0.000188,2]
[402734247,1768863041453,-151.28,0.000188,2]
[402734248,1768863041462,-151.28,0.000188,2]
[402734249,1768863041472,-151.28,0.000188,2]
[402734250,1768863041481,-151.28,0.000188,2]
[402734251,1768863041491,-151.28,0.000188,2]
[402734252,1768863041500,-151.28,0.000188,2]
[402734253,1768863041510,-151.28,0.000188,2]
[402734254,1768863041520,-151.28,0.000188,2]
[402734255,1768863041529,-151.28,0.000188,2]
[402734256,1768863041538,-151.28,0.000188,2]
[402734257,1768863041548,-151.28,0.000188,2]
[402734258,1768863041557,-151.28,0.000188,2]
[402734259,1768863041566,-151.28,0.000188,2]
[402734260,1768863041576,-151.28,0.000188,2]
[402734261,1768863041586,-151.28,0.000188,2]
[402734262,1768863041595,-151.28,0.000188,2]
[402734263,1768863041605,-151.28,0.000188,2]
[402734264,1768863041615,-151.28,0.000188,2]
[402734265,1768863041624,-151.28,0.000188,2]
[402734266,1768863041634,-151.28,0.000188,2]
[402734267,1768863041643,-151.28,0.000188,2]
[402734268,1768863041653,-151.28,0.000188,2]
[402734269,1768863041663,-151.28,0.000188,2]
[402734270,1768863041672,-151.28,0.000188,2]
[402734271,1768863041682,-151.28,0.000188,2]
[402734272,1768863041692,-151.28,0.000188,2]
[402734273,1768863041702,-151.28,0.000188,2]
[402734274,1768863041712,-151.28,0.000188,2]
[402734275,1768863041722,-151.28,0.000188,2]
[402734276,1768863041731,-151.28,0.000188,2]
[402734277,1768863041747,-151.28,0.000188,2]
[402734278,1768863041756,-151.28,0.000188,2]
[402734279,1768863041766,-151.28,0.000188,2]
[402734280,1768863041775,-151.28,0.000188,2]
[402734281,1768863041786,-151.28,0.000188,2]
[402734282,1768863041796,-151.28,0.000188,2]
[402734283,1768863041805,-151.28,0.000188,2]
[402734284,1768863041816,-168.0,0.00018817,2]
[402734285,1768863041825,-835.0,0.00018821,2]
[402734286,1768863041834,-441.24,0.00018822,2]
[402734287,1768863041844,-2351.0,0.00018841,2]
[402734288,1768863041853,-267.14,0.00018846,2]
[402734289,1768863041862,-909.71,0.00018866,2]
[402734290,1768863041872,-151.0,0.00018887,2]
[402734291,1768863041881,-209.40437684,0.00018887,2]
[402734292,1768863041891,-229.35831624,0.00018887,2]
[402734293,1768863041900,-174.61919142,0.00018887,2]
[402734294,1768863041909,-533.88981491,0.00018887,2]
[402734295,1768863041919,-150.57545204,0.000189,2]
[402734296,1768863041928,-345.38,0.00018941,2]
[402734297,1768863041938,-163.02902639,0.00018973,2]
[402734298,1768863041949,-151.28,0.0001899,2]
[402734299,1768863041958,-151.28,0.0001899,2]
[402734300,1768863041968,-151.28,0.0001899,2]
[402734301,1768863041977,-151.28,0.0001899,2]
[402734302,1768863041986,-592.0,0.00018997,2]
[402734303,1768863041995,-166.66,0.00018997,2]
[402734304,1768863042005,-300.0,0.00018999,2]
[402734305,1768863042014,-347144.21684099,0.00019,2]
[402734306,1768863042024,-5164.63507325,0.00019,2]
[402734307,1768863042034,-330.603126,0.00019,2]
[402734308,1768863042043,-330.603126,0.00019,2]
[402734309,1768863042052,-330.603126,0.00019,2]
[402734310,1768863042062,-330.603126,0.00019,2]
[402734311,1768863042072,-1245.619741,0.00019,2]
[402734312,1768863042081,-1245.619741,0.00019,2]
[402734313,1768863042091,-1245.619741,0.00019,2]
[402734314,1768863042100,-1245.619741,0.00019,2]
[402734315,1768863042109,-300.0,0.00019,2]
[402734316,1768863042119,-198.766898,0.00019,2]
[402734317,1768863042129,-198.766898,0.00019,2]
[402734318,1768863042138,-198.766898,0.00019,2]
[402734319,1768863042147,-198.766898,0.00019,2]
[402734320,1768863042157,-156.659525,0.00019,2]
[402734321,1768863042166,-151.0,0.00019,2]
[402734322,1768863042176,-168.0,0.0001903,2]
[402734323,1768863042187,-1500.0,0.00019068,2]
[402734327,1768863042505,-619.61189546,0.00019068,2]
[402734328,1768863042515,-835.0,0.00019082,2]
[402734329,1768863042524,-222.97946918,0.00019082,2]
[402734330,1768863042534,-441.28,0.00019096,2]
[402734331,1768863042544,-592.0,0.00019096,2]
[402734332,1768863042554,-151.28,0.00019168,2]
[402734333,1768863042563,-500.0,0.00019178,2]
[402734334,1768863042572,-500.0,0.00019178,2]
[402734335,1768863042581,-500.0,0.00019178,2]
[402734336,1768863042591,-500.0,0.00019178,2]
[402734337,1768863042600,-500.0,0.00019178,2]
[402734338,1768863042609,-500.0,0.00019178,2]
[402734339,1768863042619,-500.0,0.00019178,2]
[402734340,1768863042628,-500.0,0.00019178,2]
[402734341,1768863042637,-500.0,0.00019178,2]
[402734342,1768863042647,-500.0,0.00019178,2]
[402734343,1768863042657,-500.0,0.00019178,2]
[402734344,1768863042667,-500.0,0.00019178,2]
[402734345,1768863042677,-500.0,0.00019178,2]
[402734346,1768863042687,-500.0,0.00019178,2]
[402734347,1768863042697,-500.0,0.00019178,2]
[402734348,1768863042708,-571.76360524,0.00019178,2]
[402734349,1768863042719,-300.0,0.00019178,2]
[402734350,1768863042729,-151.0,0.00019178,2]
[402734351,1768863042749,-151.0,0.00019178,2]
[402734352,1768863042765,-151.0,0.00019178,2]
[402734353,1768863042775,-151.0,0.00019178,2]
[402734354,1768863042786,-151.0,0.00019178,2]
[402734355,1768863042796,-151.0,0.00019178,2]
[402734356,1768863042806,-151.0,0.00019178,2]
[402734357,1768863042815,-151.0,0.00019178,2]
[402734358,1768863042825,-151.0,0.00019178,2]
[402734359,1768863042835,-151.0,0.00019178,2]
[402734360,1768863042844,-263.0248647,0.00019178,2]
[402734361,1768863042853,-2000.0,0.000192,2]
[402734362,1768863042863,-3473.0,0.00019208,2]
[402734363,1768863042872,-1414.045,0.00019208,2]
[402734364,1768863042881,-615.0,0.00019208,2]
[402734365,1768863042891,-1332.0,0.00019208,2]
[402734366,1768863042901,-342.0,0.00019208,2]
[402734367,1768863042910,-1268.0,0.00019208,2]
[402734368,1768863042919,-6562.0,0.00019208,2]
[402734369,1768863042928,-566.0,0.00019208,2]
[402734370,1768863042937,-4826.0,0.00019208,2]
[402734371,1768863042946,-3781.0,0.00019227,2]
[402734372,1768863042955,-1117.67500683,0.0001926,2]
[402734373,1768863042964,-1787.6,0.00019297,2]
[402734374,1768863042974,-250.0,0.00019321,2]
[402734375,1768863042983,-151.0,0.0001935,2]
[402734376,1768863042993,-151.0,0.0001935,2]
[402734377,1768863043002,-151.0,0.0001935,2]
[402734378,1768863043012,-151.0,0.0001935,2]
[402734379,1768863043022,-151.0,0.0001935,2]
[402734380,1768863043032,-151.0,0.0001935,2]
[402734381,1768863043041,-151.0,0.0001935,2]
[402734382,1768863043051,-151.0,0.0001935,2]
[402734383,1768863043060,-151.0,0.0001935,2]
[402734384,1768863043070,-151.0,0.0001935,2]
[402734385,1768863043081,-151.0,0.0001935,2]
[402734386,1768863043091,-151.0,0.0001935,2]
[402734387,1768863043101,-151.0,0.0001935,2]
[402734388,1768863043111,-151.0,0.0001935,2]
[402734389,1768863043122,-218.75354341,0.0001935,2]
[402734390,1768863043131,-151.0,0.0001935,2]
[402734391,1768863043140,-151.0,0.0001935,2]
[402734392,1768863043150,-151.0,0.0001935,2]
[402734393,1768863043159,-302.0,0.0001935,2]
[402734394,1768863043169,-835.0,0.00019432,2]
[402734395,1768863043178,-553.64373807,0.00019435,2]
[402734396,1768863043187,-909.71,0.00019524,2]
[402734397,1768863043197,-166.66,0.00019551,2]
[402734398,1768863043206,-500.0,0.00019562,2]
[402734399,1768863043216,-197.71,0.00019568,14]
[402734400,1768863043225,-838.32,0.00019615,2]
[402734401,1768863043236,-714.9044405,0.00019616,2]
[402734402,1768863043247,-322.6107,0.00019708,2]
[402734403,1768863043257,-4444.0,0.00019708,2]
[402734404,1768863043266,-620.0,0.00019708,2]
[402734405,1768863043275,-155.0,0.00019799,2]
[402734406,1768863043285,-160.81,0.00019884,2]
[402734407,1768863043294,-307.0,0.000199,2]
[402734408,1768863043304,-300.0,0.000199,2]
[402734409,1768863043313,-981.0,0.000199,2]
[402734410,1768863043322,-151.28,0.0001994,2]
[402734411,1768863043332,-87659.86569305,0.0001995,15]
[402734412,1768863043341,-150.0,0.00019973,2]
[402734413,1768863043351,-574.12855636,0.00019983,2]
[402734414,1768863043363,-151.28,0.0001999,2]
[402734415,1768863043372,-1531.98062945,0.0002,2]
[402734416,1768863043381,-1465.80600112,0.0002,5]
[402734417,1768863043391,-25573.02857102,0.0002,2]
[402734418,1768863043400,-55628.03406922,0.0002,4]
[402734419,1768863043409,-233.91,0.0002,2]
[402734420,1768863043419,-1000.0,0.0002,7]
[402734421,1768863043428,-151.0,0.00020014,2]
[402734422,1768863043438,-151.0,0.00020014,2]
[402734423,1768863043448,-151.0,0.00020014,2]
[402734424,1768863043457,-151.0,0.00020014,2]
[402734425,1768863043467,-151.0,0.00020014,2]
[402734426,1768863043477,-151.0,0.00020014,2]
[402734427,1768863043489,-151.0,0.00020014,2]
[402734428,1768863043499,-151.0,0.00020014,2]
[402734429,1768863043508,-151.0,0.00020014,2]
[402734430,1768863043518,-151.0,0.00020014,2]
[402734431,1768863043528,-151.0,0.00020014,2]
[402734432,1768863043538,-151.0,0.00020014,2]
[402734433,1768863043547,-151.0,0.00020014,2]
[402734434,1768863043558,-151.0,0.00020014,2]
[402734435,1768863043567,-1787.6,0.00020053,2]
[402734436,1768863043576,-1000.0,0.000201,2]
[402734437,1768863043585,-500.0,0.00020128,2]
[402734438,1768863043595,-1199.06,0.00020145,2]
[402734439,1768863043604,-909.71,0.00020182,2]
[402734440,1768863043613,-157.65,0.00020202,2]
[402734441,1768863043623,-180.0,0.00020332,2]
[402734442,1768863043633,-1600.0,0.00020434,2]
[402734443,1768863043642,-838.32,0.00020468,2]
[402734444,1768863043651,-250.0,0.00020521,2]
[402734445,1768863043661,-788.482212,0.00020548,2]
[402734446,1768863043670,-788.482212,0.00020548,2]
[402734447,1768863043679,-788.482212,0.00020548,2]
[402734448,1768863043688,-788.482212,0.00020548,2]
[402734449,1768863043698,-788.482212,0.00020548,2]
[402734450,1768863043707,-788.482212,0.00020548,2]
[402734451,1768863043716,-788.482212,0.00020548,2]
[402734452,1768863043725,-788.482212,0.00020548,2]
[402734453,1768863043737,-154.07,0.00020557,2]
[402734454,1768863043747,-1490.38,0.000206,4]
[402734455,1768863043758,-1117.67500683,0.0002062,2]
[402734456,1768863043767,-229.0,0.00020712,2]
[402734457,1768863043776,-1787.6,0.00020809,2]
[402734458,1768863043787,-162.70783595,0.0002081,2]
[402734459,1768863043796,-551.72402167,0.0002081,2]
[402734460,1768863043807,-151.28,0.00020858,2]
[402734461,1768863043816,-151.0,0.00020865,2]
[402734462,1768863043826,-11373.84305597,0.00020868,3]
[402734463,1768863043836,-13736.398989,0.00020868,2]
[402734464,1768863043846,-92225.4827616,0.00020868,2]
[402734465,1768863043856,-25000.0,0.0002087,3]
[402734466,1768863043866,-2173.12079,0.00020882,30]
[402734467,1768863043876,-200.0,0.00020926,2]
[402734468,1768863043886,-350.0,0.00021,2]
[402734469,1768863043895,-10727.66382584,0.00021043,14]
[402734470,1768863043905,-350.0,0.00021068,2]
[402734471,1768863043914,-4444.0,0.00021077,2]
[402734472,1768863043924,-578.20924308,0.00021078,2]
[402734473,1768863043933,-670.58624095,0.00021078,2]
[402734474,1768863043942,-1293.0,0.000211,2]
[402734475,1768863043952,-152.76,0.0002125,2]
[402734476,1768863043961,-152.74,0.00021284,2]
[402734477,1768863043972,-151.0,0.00021465,2]
[402734478,1768863043981,-151.0,0.00021465,2]
[402734479,1768863043991,-166.025202,0.00021465,2]
[402734480,1768863044000,-151.0,0.00021465,2]
[402734481,1768863044010,-163.37963,0.00021465,2]
[402734482,1768863044020,-151.0,0.00021465,2]
[402734483,1768863044030,-151.0,0.00021465,2]
[402734484,1768863044039,-151.0,0.00021465,2]
[402734485,1768863044049,-151.0,0.00021465,2]
[402734486,1768863044059,-151.0,0.00021465,2]
[402734487,1768863044068,-151.0,0.00021465,2]
[402734488,1768863044077,-151.0,0.00021465,2]
[402734489,1768863044086,-151.0,0.00021465,2]
[402734490,1768863044095,-151.0,0.00021465,2]
[402734491,1768863044105,-151.0,0.00021465,2]
[402734492,1768863044114,-151.0,0.00021465,2]
[402734493,1768863044123,-151.0,0.00021465,2]
[402734494,1768863044132,-151.0,0.00021465,2]
[402734495,1768863044142,-151.0,0.00021465,2]